bitfinex-derivatives/quotes_SOLF0:USTF0_20240902
["timestamp","ask_amount","ask_price","bid_price","bid_amount"]
[1725242609276,74.79208305,130.05,130.03,9.47]
[1725242609475,5.16604866,130.06,130.03,9.5225111]
[1725242609682,3.8449,130.05,130.03,9.5225111]
[1725242610482,5.2271,130.06,130.03,9.5225111]
[1725242611182,3.8449,130.05,130.03,9.5225111]
[1725242612791,10.8524,130.06,129.71,18.46977039]
[1725242612978,10.8524,130.06,129.99,9.47]
[1725242613183,3.8457,130.03,129.99,9.47]
[1725242613483,10.8524,130.06,129.99,9.47]
[1725242613881,3.8457,130.02,130.01,0.05478721]
[1725242614087,0.0509971,130.04,130.01,0.05478721]
[1725242614477,3.8455,130.03,130.01,0.05478721]
[1725242618287,3.8457,130.02,130.01,0.05478721]
[1725242624783,3.8455,130.03,130.01,0.05478721]
[1725242625792,0.0509971,130.04,130.01,9.52478721]
[1725242625990,3.8962971,130.04,130.01,9.52478721]
[1725242626994,3.8454,130.03,130.01,9.52478721]
[1725242628088,3.8961971,130.04,130.01,9.52478721]
[1725242628793,3.8454,130.03,130.01,9.52478721]
[1725242630893,3.8962971,130.04,130.01,9.52478721]
[1725242631701,0.0509971,130.04,130.01,9.52478721]
[1725242632304,3.8961971,130.04,130.01,9.52478721]
[1725242635707,0.0509971,130.04,130.01,0.05478721]
[1725242636902,9.47,130.02,129.85,68.06662692]
[1725242637205,9.47,130.0,129.94,9.47]
[1725242637403,13.22854826,130.0,129.94,9.47]
[1725242637605,3.75854826,130.0,129.94,9.47]
[1725242637907,0.05254881,129.98,129.96,0.04916843]
[1725242638200,0.05254881,129.98,129.97,9.47]
[1725242642013,3.8455,130.03,129.97,9.47]
[1725242642208,3.8455,130.03,130.01,9.47]
[1725242643010,3.89749032,130.03,130.01,9.52589163]
[1725242646921,3.8457,130.02,130.01,0.05589163]
[1725242649117,3.89759032,130.03,130.01,0.05589163]
[1725242649515,0.05199032,130.03,130.01,9.52589163]
[1725242654731,0.05199032,130.03,130.01,0.05589163]
[1725242655628,3.8457,130.02,130.01,0.05589163]
[1725242658631,3.89749032,130.03,130.01,9.52589163]
[1725242658927,0.05199032,130.03,130.01,9.52589163]
[1725242661124,1.4083,130.08,130.02,13.3157]
[1725242661332,648.79338931,130.11,130.05,9.47]
[1725242661531,1.4134214,130.1,130.05,9.47]
[1725242662224,3.8444,130.07,130.06,0.05714734]
[1725242674339,3.8441,130.08,130.06,0.05714734]
[1725242675328,3.8435,130.1,130.06,9.52714734]
[1725242675531,3.8435,130.1,130.07,9.47]
[1725242675726,75.22894826,130.11,130.06,9.52714734]
[1725242675938,75.22894826,130.11,130.06,0.05714734]
[1725242675939,84.69894826,130.11,130.06,0.05714734]
[1725242676731,9.47,130.1,130.06,0.05714734]
[1725242678331,3.8442,130.07,130.06,0.05714734]
[1725242685345,3.844,130.08,130.06,0.05714734]
[1725242687638,75.22894826,130.11,130.06,9.52714734]
[1725242689445,3.8437,130.09,130.06,9.52714734]
[1725242689845,75.22894826,130.11,130.06,13.37164734]
[1725242690363,3.8435,130.1,130.06,13.37164734]
[1725242690845,3.8435,130.1,130.06,9.52714734]
[1725242692746,75.22894826,130.11,130.06,9.52714734]
[1725242692944,9.47,130.1,130.06,0.05714734]
[1725242693350,3.8439,130.09,130.06,0.05714734]
[1725242696259,3.844,130.08,130.06,0.05714734]
[1725242699460,3.8439,130.09,130.06,0.05714734]
[1725242699660,9.47,130.13,130.06,0.05714734]
[1725242699860,9.47,130.13,130.08,0.0528811]
[1725242700261,3.8439,130.09,130.08,0.0528811]
[1725242703765,3.8435,130.1,130.08,0.0528811]
[1725242705865,7.67489306,130.11,130.08,0.0528811]
[1725242706067,3.8432,130.11,130.08,0.0528811]
[1725242706467,3.8432,130.11,130.08,9.5228811]
[1725242707566,3.8429,130.12,130.08,9.5228811]
[1725242707963,3.8429,130.12,130.08,13.3667811]
[1725242708160,3.8426,130.13,130.09,9.47]
[1725242709364,3.78391882,130.15,130.09,13.3135]
[1725242709566,3.8423,130.14,130.11,0.05279104]
[1725242711668,3.78391882,130.15,130.11,0.05279104]
[1725242711669,3.8425,130.13,130.11,0.05279104]
[1725242711971,9.47,130.12,130.11,0.05279104]
[1725242713264,13.3127,130.12,130.11,0.05279104]
[1725242713870,3.8442,130.08,130.05,10.9185]
[1725242714270,9.47,130.08,130.0,2.7921]
[1725242714475,9.47,130.08,130.01,9.47]
[1725242714777,9.47,130.08,130.03,9.47]
[1725242714974,0.05403622,130.05,130.03,9.5186161]
[1725242715373,0.05403622,130.05,130.04,9.47]
[1725242715779,9.47,130.12,130.04,9.47]
[1725242716075,9.47,130.11,130.04,10.9116]
[1725242716468,3.8437,130.09,130.04,10.9116]
[1725242716873,3.77344003,130.08,130.05,0.05876099]
[1725242717071,9.47,130.11,130.05,0.05876099]
[1725242717971,3.8441,130.08,130.05,0.05876099]
[1725242718274,3.7971814,130.08,130.05,0.05876099]
[1725242718472,3.8444,130.07,130.05,0.05876099]
[1725242719174,3.8445,130.06,130.05,0.05876099]
[1725242724279,15.4008,130.17,130.05,9.52876099]
[1725242724488,9.47,130.14,130.08,0.05896165]
[1725242724692,13.27054916,130.14,130.1,0.05564084]
[1725242725478,1.4653,130.15,130.1,9.52564084]
[1725242725883,5.22970838,130.15,130.1,9.52564084]
[1725242726090,3.8426,130.13,130.1,9.52564084]
[1725242733490,5.22970838,130.15,130.1,9.52564084]
[1725242733491,3.8422,130.14,130.1,9.52564084]
[1725242735799,3.8422,130.14,130.1,13.36894084]
[1725242735997,3.842,130.15,130.11,9.47]
[1725242736295,3.842,130.15,130.12,0.05564928]
[1725242736503,3.8417,130.16,130.12,0.05564928]
[1725242737401,3.8417,130.16,130.12,9.52564928]
[1725242739216,3.80273172,130.17,130.12,9.52564928]
[1725242739217,3.8421,130.15,130.12,9.52564928]
[1725242743312,3.84086368,130.17,130.12,9.52564928]
[1725242743611,2.7919,130.2,130.14,9.47]
[1725242743910,3.81579958,130.21,130.16,9.52280156]
[1725242744106,9.47,130.2,130.17,0.05823998]
[1725242744405,13.21779067,130.2,130.17,0.05700115]
[1725242744805,9.47,130.19,130.17,0.05700115]
[1725242745002,9.47,130.19,130.12,3.8426]
[1725242745003,9.47,130.18,130.05,3.81093003]
[1725242745206,9.47,130.18,130.06,4.2168]
[1725242745404,9.47,130.18,130.12,9.47]
[1725242746104,3.8937395,130.16,130.14,0.04971064]
[1725242746316,0.0520395,130.16,130.14,0.04971064]
[1725242747312,3.8937395,130.16,130.14,0.04971064]
[1725242747513,0.0520395,130.16,130.14,0.04971064]
[1725242749205,0.0520395,130.16,130.14,9.51971064]
[1725242749711,0.0520395,130.16,130.14,13.36181064]
[1725242750504,1.4154,130.22,130.16,3.8415]
[1725242750703,10.8854,130.22,130.16,3.8415]
[1725242751121,7.77201736,130.21,130.16,3.8415]
[1725242751511,3.8404,130.21,130.17,9.52399447]
[1725242752412,3.8404,130.21,130.17,13.36519447]
[1725242755520,190.79895728,130.32,130.17,13.36519447]
[1725242755521,225.0,130.3,130.21,3.8399]
[1725242755718,225.0,130.3,130.22,0.05515161]
[1725242755920,10.88148665,130.27,130.22,0.05515161]
[1725242756117,3.8388,130.26,130.22,0.05515161]
[1725242756417,3.8388,130.26,130.23,0.05440568]
[1725242756623,9.47,130.28,130.23,0.05440568]
[1725242757522,225.0,130.3,130.23,0.05440568]
[1725242757825,10.88146625,130.29,130.23,0.05440568]
[1725242758028,9.47,130.29,130.23,0.05440568]
[1725242759225,3.8386,130.26,130.23,0.05440568]
[1725242760627,3.839,130.25,130.23,0.05440568]
[1725242762817,3.8392,130.24,130.23,0.05440568]
[1725242764724,3.8403,130.21,130.17,9.47]
[1725242765031,0.05766756,130.25,130.18,9.47]
[1725242765032,12.3349,130.25,130.18,9.47]
[1725242765325,3.8398,130.23,130.18,9.47]
[1725242765732,0.05160862,130.22,130.19,0.05207032]
[1725242766623,7.72369929,130.22,130.19,0.05207032]
[1725242766821,3.88369929,130.22,130.19,0.05207032]
[1725242767127,0.05160862,130.22,130.19,0.05207032]
[1725242768024,3.8402,130.21,130.19,0.05207032]
[1725242768227,0.05160862,130.22,130.19,0.05207032]
[1725242768626,3.89150862,130.22,130.19,0.05207032]
[1725242769532,3.89150862,130.22,130.19,9.52207032]
[1725242769728,0.05160862,130.22,130.19,9.52207032]
[1725242771237,0.05160862,130.22,130.21,9.47]
[1725242773439,0.05160862,130.22,130.19,3.89257032]
[1725242773628,0.05160862,130.22,130.2,9.47]
[1725242774236,0.05160862,130.22,130.21,9.47]
[1725242776834,0.05160862,130.22,130.2,9.47]
[1725242782139,0.05160862,130.22,130.21,9.47]
[1725242783341,0.05160862,130.22,130.21,13.3101]
[1725242784341,3.8387,130.26,130.22,3.8398]
[1725242784539,3.8387,130.26,130.23,9.47]
[1725242784740,13.5757,130.29,130.23,9.47]
[1725242784943,9.47,130.28,130.21,9.47]
[1725242785343,3.8386,130.26,130.23,0.05909081]
[1725242785748,9.47,130.28,130.23,0.05909081]
[1725242786939,3.8388,130.26,130.23,0.05909081]
[1725242787937,4.1057,130.29,130.23,0.05909081]
[1725242787938,4.1057,130.29,130.23,9.52909081]
[1725242788346,7.9436,130.29,130.24,9.47]
[1725242788643,4.1057,130.29,130.23,9.52909081]
[1725242789547,3.8385,130.27,130.23,9.52909081]
[1725242790145,3.8387,130.26,130.23,9.52909081]
[1725242791347,3.8384,130.27,130.23,9.52909081]
[1725242793044,3.8381,130.28,130.23,13.36859081]
[1725242793244,13.33384818,130.3,130.23,0.05909081]
[1725242793450,13.33384818,130.3,130.23,9.52909081]
[1725242793652,3.8383,130.28,130.23,9.52909081]
[1725242794045,3.8383,130.28,130.25,9.47]
[1725242795250,3.86384818,130.3,130.25,9.47]
[1725242795453,9.47,130.31,130.25,9.47]
[1725242795454,9.47,130.31,130.26,0.05055847]
[1725242796051,3.92630429,130.31,130.26,0.05055847]
[1725242796252,9.47,130.31,130.26,0.05055847]
[1725242796556,9.47,130.3,130.26,0.05055847]
[1725242797351,9.47,130.27,130.11,37.88]
[1725242797551,9.47,130.26,130.19,12.2565]
[1725242797853,3.8394,130.24,130.21,9.47]
[1725242798450,3.89010921,130.24,130.21,9.52601998]
[1725242799860,0.05070921,130.24,130.21,9.52601998]
[1725242800153,0.05070921,130.24,130.22,9.47]
[1725242803254,3.89010921,130.24,130.22,9.47]
[1725242803652,0.05070921,130.24,130.22,9.47]
[1725242803952,3.89020921,130.24,130.21,9.52601998]
[1725242804847,3.8396,130.23,130.21,9.52601998]
[1725242806355,3.8396,130.23,130.21,0.05601998]
[1725242807061,3.89000921,130.24,130.22,9.47]
[1725242808061,3.89000921,130.24,130.21,0.05601998]
[1725242808062,0.05070921,130.24,130.23,9.47]
[1725242808246,2.79380274,130.32,130.23,9.47]
[1725242808449,3.8366,130.33,130.3,9.47]
[1725242808857,3.75450272,130.34,130.24,40.7075]
[1725242808858,11.8895,130.39,130.32,9.47]
[1725242809064,3.8356,130.37,130.32,9.47]
[1725242809352,9.47,130.37,130.33,0.05255834]
[1725242809562,9.47,130.37,130.34,0.05060825]
[1725242809563,3.836,130.35,130.34,0.05060825]
[1725242809750,17.48076748,130.39,130.33,0.05867531]
[1725242810061,17.48076748,130.39,130.35,0.05685506]
[1725242811955,8.01076748,130.39,130.35,0.05685506]
[1725242812160,3.8354,130.38,130.35,0.05685506]
[1725242812760,3.80326748,130.39,130.35,0.05685506]
[1725242812957,3.8347,130.4,130.36,23.58]
[1725242813152,4.1007,130.44,130.36,23.58]
[1725242813354,1.40979351,130.43,130.39,0.054403]
[1725242813559,4.1007,130.44,130.39,0.054403]
[1725242813962,3.8345,130.4,130.39,0.054403]
[1725242814158,4.1007,130.44,130.39,0.054403]
[1725242815261,23.58,130.43,130.39,0.054403]
[1725242816567,4.1007,130.44,130.39,0.054403]
[1725242816869,3.8345,130.4,130.39,0.054403]
[1725242819562,23.58,130.41,130.32,1.3993]
[1725242819963,4.1007,130.44,130.33,23.58]
[1725242820162,4.1007,130.44,130.35,23.58]
[1725242820766,0.05406471,130.41,130.38,0.05448468]
[1725242821168,3.8348,130.4,130.38,0.05448468]
[1725242821469,0.05406471,130.41,130.38,0.05448468]
[1725242821655,3.8345,130.4,130.38,0.05448468]
[1725242821858,0.05406471,130.41,130.38,0.05448468]
[1725242822260,3.8348,130.39,130.38,0.05448468]
[1725242822961,0.05406471,130.41,130.38,0.05448468]
[1725242823475,3.8347,130.4,130.38,0.05448468]
[1725242823959,3.8348,130.39,130.38,0.05448468]
[1725242824163,7.72458915,130.39,130.38,0.05448468]
[1725242824368,3.8348,130.39,130.38,0.05448468]
[1725242824569,3.8345,130.4,130.38,0.05448468]
[1725242825063,3.8348,130.39,130.38,0.05448468]
[1725242825267,7.68048288,130.39,130.38,0.05448468]
[1725242825458,3.8348,130.39,130.38,0.05448468]
[1725242826065,7.59073622,130.39,130.38,0.05448468]
[1725242826261,3.8348,130.39,130.38,0.05448468]
[1725242826471,7.75373764,130.39,130.38,0.05448468]
[1725242826655,3.8348,130.39,130.38,0.05448468]
[1725242828767,7.66744719,130.4,130.38,0.05448468]
[1725242828955,3.8346,130.4,130.38,0.05448468]
[1725242829160,7.73687727,130.4,130.38,0.05448468]
[1725242829360,3.8348,130.39,130.38,0.05448468]
[1725242829766,3.90227727,130.4,130.38,0.05448468]
[1725242830374,0.05406471,130.41,130.38,0.05448468]
[1725242830765,3.88856471,130.41,130.38,0.05448468]
[1725242830969,3.90694497,130.41,130.38,0.05448468]
[1725242831168,7.74134497,130.41,130.38,0.05448468]
[1725242831370,3.90694497,130.41,130.38,0.05448468]
[1725242832161,27.48694497,130.41,130.38,0.05448468]
[1725242832369,3.8348,130.39,130.38,0.05448468]
[1725242832672,3.90694497,130.41,130.38,0.05448468]
[1725242833168,3.8347,130.4,130.38,0.05448468]
[1725242833572,3.8348,130.39,130.38,0.05448468]
[1725242838376,3.8347,130.4,130.38,0.05448468]
[1725242842070,3.8348,130.39,130.38,0.05448468]
[1725242842576,3.8348,130.39,130.34,9.43]
[1725242842780,13.28288026,130.41,130.35,9.43]
[1725242843283,3.8347,130.4,130.35,9.43]
[1725242843488,0.04892024,130.39,130.36,0.05421198]
[1725242845180,3.8353,130.38,130.36,0.05421198]
[1725242850080,0.04892024,130.39,130.36,0.05421198]
[1725242850293,0.04892024,130.39,130.37,9.43]
[1725242852280,0.04892024,130.39,130.36,0.05421198]
[1725242852486,0.04892024,130.39,130.36,9.48421198]
[1725242854589,0.04892024,130.39,130.36,13.31981198]
[1725242855287,0.04892024,130.39,130.36,9.48421198]
[1725242856386,0.04892024,130.39,130.36,13.31961198]
[1725242857777,350.682,130.5,130.37,9.43]
[1725242857981,235.67913582,130.51,130.37,9.43]
[1725242857982,9.43,130.45,130.37,9.43]
[1725242858187,13.31249731,130.45,130.37,9.43]
[1725242858685,3.8341,130.42,130.37,13.2652]
[1725242858893,0.05453615,130.42,130.4,0.05777372]
[1725242859084,0.05654963,130.42,130.4,0.05312661]
[1725242859285,13.2644,130.41,130.4,0.05312661]
[1725242859480,9.43,130.41,130.34,9.43]
[1725242859779,3.8348,130.39,130.34,9.43]
[1725242860389,0.05899408,130.38,130.35,0.05837234]
[1725242860801,3.89419408,130.38,130.35,0.05837234]
[1725242861092,13.31635814,130.38,130.35,0.05837234]
[1725242861686,3.8357,130.36,130.35,0.05837234]
[1725242863795,0.05899408,130.38,130.35,0.05837234]
[1725242864789,0.05899408,130.38,130.35,9.48837234]
[1725242865292,0.05899408,130.38,130.35,0.05837234]
[1725242865486,3.88042397,130.38,130.35,0.05837234]
[1725242865682,3.8356,130.37,130.35,0.05837234]
[1725242866090,3.79381341,130.37,130.35,0.05837234]
[1725242866284,9.48899408,130.38,130.35,0.05837234]
[1725242866593,9.43,130.37,130.35,0.05837234]
[1725242866794,3.8357,130.36,130.35,0.05837234]
[1725242867104,0.05899408,130.38,130.35,0.05837234]
[1725242867391,0.05899408,130.38,130.35,9.48837234]
[1725242867593,0.05899408,130.38,130.36,9.43]
[1725242868197,0.05899408,130.38,130.37,9.43]
[1725242868494,0.05899408,130.38,130.35,0.05837234]
[1725242868792,0.05899408,130.38,130.36,9.43]
[1725242869890,0.05899408,130.38,130.35,23.61837234]
[1725242870297,0.05899408,130.38,130.35,27.45417234]
[1725242873696,3.75181313,130.42,130.36,3.90214644]
[1725242873902,23.56,130.45,130.36,3.90214644]
[1725242874102,27.38736329,130.45,130.37,1.3285]
[1725242874607,3.8344,130.41,130.37,1.3285]
[1725242874803,0.05358548,130.4,130.38,0.05101116]
[1725242880006,23.56,130.48,130.39,23.56]
[1725242880506,3.8335,130.44,130.39,27.3946]
[1725242880908,3.8335,130.44,130.4,0.05212808]
[1725242881595,3.8335,130.44,130.4,3.88662808]
[1725242883099,37.49624757,130.5,130.42,3.8338]
[1725242883303,24.9472,130.5,130.45,0.05102923]
[1725242883917,49.92045698,130.55,130.45,23.61102923]
[1725242883918,42.23845698,130.55,130.45,23.61102923]
[1725242884211,1.40865338,130.54,130.49,0.04966014]
[1725242884405,3.8312,130.52,130.49,0.04966014]
[1725242885206,4.2197,130.57,130.49,0.04966014]
[1725242885412,24.96848131,130.56,130.52,0.05462358]
[1725242885711,1.40848131,130.55,130.52,0.05462358]
[1725242886311,8.05447687,130.57,130.52,0.05462358]
[1725242886312,3.83477687,130.57,130.52,0.05462358]
[1725242886513,23.56,130.59,130.52,0.05462358]
[1725242886708,3.8298,130.56,130.52,0.05462358]
[1725242886917,343.0,130.61,130.52,0.05462358]
[1725242887107,24.96813914,130.6,130.55,0.05836749]
[1725242887306,3.8298,130.57,130.56,0.05841504]
[1725242887516,23.56,130.57,130.48,2.7241]
[1725242887812,23.56,130.54,130.48,2.7241]
[1725242888008,7.69650757,130.53,130.46,31.3056516]
[1725242888200,3.86560757,130.53,130.46,31.3056516]
[1725242888405,0.05564259,130.51,130.48,0.05034739]
[1725242890702,3.8316,130.5,130.48,0.05034739]
[1725242892112,0.05564259,130.51,130.48,0.05034739]
[1725242892711,3.88694259,130.51,130.48,0.05034739]
[1725242893119,0.05564259,130.51,130.48,0.05034739]
[1725242893410,3.8319,130.49,130.48,0.05034739]
[1725242898710,1.3581,130.51,130.41,4.1381]
[1725242898912,23.56,130.5,130.42,23.56]
[1725242899511,3.8323,130.48,130.42,27.3939]
[1725242899711,0.05437787,130.46,130.44,0.05589287]
[1725242901814,3.88717787,130.46,130.44,0.05589287]
[1725242902521,3.833,130.45,130.44,0.05589287]
[1725242903224,3.833,130.45,130.41,17.3921]
[1725242903225,3.834,130.42,130.37,9.42]
[1725242903421,1.4621,130.5,130.41,9.42]
[1725242903617,9.42,130.49,130.43,9.42]
[1725242903820,3.8326,130.47,130.43,9.42]
[1725242904317,0.0581338,130.46,130.44,0.05512646]
[1725242905920,3.8908338,130.46,130.44,0.05512646]
[1725242906128,0.0581338,130.46,130.44,0.05512646]
[1725242907423,3.8909338,130.46,130.44,0.05512646]
[1725242909926,0.0581338,130.46,130.44,0.05512646]
[1725242915227,0.0581338,130.46,130.45,9.42]
[1725242915738,0.0581338,130.46,130.45,13.253]
[1725242916336,9.42,130.54,130.47,13.2523]
[1725242916638,9.42,130.54,130.47,9.42]
[1725242916839,3.8312,130.52,130.48,3.8321]
[1725242917036,9.42,130.54,130.47,13.2110951]
[1725242917236,0.05530066,130.52,130.49,0.04912084]
[1725242917443,3.88650066,130.52,130.49,0.04912084]
[1725242917639,9.47530066,130.52,130.49,0.04912084]
[1725242918040,3.8315,130.51,130.49,0.04912084]
[1725242918744,9.47530066,130.52,130.49,0.04912084]
[1725242919946,3.8314,130.51,130.49,0.04912084]
[1725242921244,0.05530066,130.52,130.49,0.04912084]
[1725242922342,0.05530066,130.52,130.49,3.88092084]
[1725242922937,0.05530066,130.52,130.5,13.2515]
[1725242923741,0.05530066,130.52,130.51,3.8313]
[1725242924137,0.05530066,130.52,130.51,13.2513]
[1725242924341,343.0,130.61,130.47,4.236]
[1725242924547,1.40798997,130.6,130.51,9.42]
[1725242924749,4.1011,130.62,130.53,9.42]
[1725242925041,4.1011,130.62,130.52,9.42]
[1725242925042,9.42,130.59,130.52,9.42]
[1725242925248,9.42,130.6,130.53,13.30361566]
[1725242925546,0.05677607,130.57,130.54,0.05809091]
[1725242925849,3.88647607,130.57,130.54,0.05480786]
[1725242926243,0.05677607,130.57,130.54,0.05480786]
[1725242926448,0.05677607,130.57,130.54,3.96970827]
[1725242926743,353.67913582,130.72,130.56,9.42]
[1725242927041,353.67913582,130.72,130.48,95.61501103]
[1725242927042,1.40725104,130.71,130.64,9.42]
[1725242927243,9.42,130.71,130.65,9.42]
[1725242927452,9.42,130.71,130.64,13.32379159]
[1725242927453,3.8263,130.68,130.64,13.32379159]
[1725242927644,3.8263,130.68,130.64,9.42]
[1725242927838,1.3913,130.75,130.67,9.42]
[1725242927839,3.87467883,130.72,130.67,9.42]
[1725242928048,3.8259,130.7,130.68,0.05016317]
[1725242928347,9.42,130.73,130.68,0.05016317]
[1725242928553,3.90149322,130.72,130.68,0.05016317]
[1725242929050,9.42,130.73,130.68,0.05016317]
[1725242929456,3.8258,130.7,130.68,0.05016317]
[1725242929842,3.82028393,130.74,130.68,9.47016317]
[1725242930048,3.82028393,130.74,130.68,0.05016317]
[1725242930346,3.8254,130.71,130.68,0.05016317]
[1725242930743,23.52,130.74,130.68,0.05016317]
[1725242931148,23.52,130.7,130.39,10.52896546]
[1725242931356,23.52,130.7,130.6,23.52]
[1725242931549,23.52,130.7,130.6,27.30069787]
[1725242932253,3.8272,130.65,130.64,0.05473528]
[1725242932458,3.8272,130.65,130.63,0.04978462]
[1725242932459,3.75697524,130.65,130.63,0.04978462]
[1725242932754,23.57122823,130.65,130.54,1.3695]
[1725242932948,23.52,130.62,130.54,1.3695]
[1725242933149,26.3131,130.64,130.54,1.3695]
[1725242933454,3.8291,130.59,130.54,1.3695]
[1725242933850,23.52,130.62,130.54,1.3695]
[1725242934051,0.05840631,130.59,130.57,0.04864733]
[1725242934454,3.8292,130.58,130.57,0.04864733]
[1725242935462,3.8292,130.58,130.49,1.4689]
[1725242935463,23.52,130.58,130.49,1.4689]
[1725242935759,23.52,130.56,130.49,1.4689]
[1725242935959,3.8309,130.53,130.49,1.4689]
[1725242936756,3.88474365,130.52,130.5,0.05593106]
[1725242936953,0.05151107,130.52,130.5,0.05593106]
[1725242937258,0.05151107,130.52,130.45,23.52]
[1725242937446,23.52,130.56,130.46,1.4442]
[1725242937653,23.52,130.56,130.46,4.1879]
[1725242937961,33.19855531,130.57,130.46,33.6379]
[1725242938157,0.05419764,130.53,130.5,0.05276893]
[1725242939766,3.8312,130.52,130.5,0.05276893]
[1725242940554,3.831,130.52,130.5,0.05276893]
[1725242941866,3.8313,130.51,130.5,0.05276893]
[1725242944578,0.05419764,130.53,130.5,0.05276893]
[1725242945071,3.8313,130.51,130.5,0.05276893]
[1725242948366,0.05419764,130.53,130.5,0.05276893]
[1725242948764,3.831,130.52,130.5,0.05276893]
[1725242949370,3.88499764,130.53,130.5,0.05276893]
[1725242950165,0.05419764,130.53,130.5,0.05276893]
[1725242950372,0.05419764,130.53,130.5,3.88416893]
[1725242950675,0.05419764,130.53,130.5,0.05276893]
[1725242950873,3.8313,130.51,130.5,0.05276893]
[1725242952770,1.39899764,130.53,130.45,3.74625676]
[1725242952771,30.7992,130.52,130.45,3.74625676]
[1725242953076,3.8326,130.47,130.42,32.2677]
[1725242953470,3.8326,130.47,130.42,39.88311582]
[1725242953670,0.05161721,130.46,130.43,0.05858141]
[1725242953870,0.05161721,130.46,130.43,0.05008764]
[1725242953871,0.05510838,130.46,130.43,0.05008764]
[1725242954378,0.05510838,130.46,130.45,29.45]
[1725242956674,29.45,130.56,130.45,29.45]
[1725242956876,30.8141,130.56,130.47,29.45]
[1725242957072,3.8316,130.51,130.47,29.45]
[1725242957572,0.05766659,130.5,130.47,29.45]
[1725242957769,0.05766659,130.5,130.48,0.04963495]
[1725242958078,3.88946659,130.5,130.48,0.04963495]
[1725242958272,0.05766659,130.5,130.48,0.04963495]
[1725242959376,3.8319,130.49,130.48,0.04963495]
[1725242959584,23.61766659,130.5,130.42,3.78151582]
[1725242959777,23.56,130.48,130.42,3.78151582]
[1725242959976,3.8332,130.45,130.42,3.78151582]
[1725242960178,27.44076201,130.48,130.41,89.28915929]
[1725242960378,3.8335,130.44,130.41,87.84535929]
[1725242960578,3.88623494,130.44,130.41,0.05689142]
[1725242961884,3.88603494,130.44,130.41,0.05689142]
[1725242962071,0.05273494,130.44,130.41,29.49689142]
[1725242962276,0.05273494,130.44,130.41,33.30285308]
[1725242962470,0.05273494,130.44,130.41,37.13685308]
[1725242962977,0.05273494,130.44,130.42,3.8338]
[1725242963782,0.05273494,130.44,130.41,33.30285308]
[1725242965185,0.05273494,130.44,130.41,37.13685308]
[1725242967087,3.88613494,130.44,130.41,37.13685308]
[1725242967788,0.05273494,130.44,130.42,3.8339]
[1725242968278,3.8336,130.43,130.41,0.05689142]
[1725242969484,0.05273494,130.44,130.41,0.05689142]
[1725242969485,3.8339,130.42,130.41,0.05689142]
[1725242970691,3.8337,130.43,130.41,0.05689142]
[1725242971285,3.8339,130.42,130.41,0.05689142]
[1725242971994,3.8337,130.43,130.41,0.05689142]
[1725242972293,0.05273494,130.44,130.41,0.05689142]
[1725242972485,3.8339,130.42,130.41,0.05689142]
[1725242973394,3.8349,130.39,130.33,29.44]
[1725242973780,3.8349,130.39,130.34,92.01760777]
[1725242974291,3.8349,130.39,130.35,0.04966124]
[1725242974292,0.05005535,130.38,130.35,0.04966124]
[1725242975293,3.88515535,130.38,130.35,0.04966124]
[1725242975496,0.05005535,130.38,130.35,0.04966124]
[1725242977794,3.8357,130.36,130.35,0.04966124]
[1725242978001,34.73417211,130.4,130.3,3.8373]
[1725242978190,34.73417211,130.4,130.3,7.65087882]
[1725242978498,1.4001,130.43,130.33,29.44]
[1725242978699,1.4001,130.43,130.29,2.8349]
[1725242978893,0.05429896,130.37,130.35,0.05519317]
[1725242979091,0.05745932,130.37,130.35,0.05359549]
[1725242983003,0.05745932,130.37,130.35,3.88949549]
[1725242984090,0.05745932,130.37,130.35,0.05359549]
[1725242984997,0.05745932,130.37,130.35,3.88949549]
[1725242985391,0.05745932,130.37,130.36,3.8357]
[1725242986401,25.0395,130.44,130.35,24.9063]
[1725242986802,23.57,130.37,130.15,320.23532268]
[1725242987000,2.8265,130.36,130.24,1.3363]
[1725242987303,0.05050375,130.31,130.29,0.04836331]
[1725242987597,0.05127145,130.31,130.29,0.04836331]
[1725242990295,3.88847145,130.31,130.29,0.04836331]
[1725242991798,0.05127145,130.31,130.29,0.04836331]